bitfinex-derivatives/quotes_BTCF0:USTF0_20250315
["timestamp","ask_amount","ask_price","bid_price","bid_amount"]
[1742009643611,0.1180502,84708.0,84707.0,0.1770759]
[1742009644310,0.1856502,84708.0,84707.0,0.1770759]
[1742009644498,0.1856502,84708.0,84707.0,0.4270759]
[1742009644697,0.1856502,84708.0,84707.0,0.4470759]
[1742009644898,0.1856502,84708.0,84707.0,0.1770759]
[1742009645296,0.1866502,84708.0,84707.0,0.1770759]
[1742009645501,0.1866502,84708.0,84707.0,0.4670759]
[1742009645809,0.1866502,84708.0,84707.0,0.4470759]
[1742009645993,0.1770891,84703.0,84702.0,0.118054]
[1742009646198,0.0590292,84703.0,84702.0,0.678054]
[1742009646401,0.0345,84704.0,84703.0,0.1180572]
[1742009646602,0.0590277,84705.0,84704.0,0.1180558]
[1742009646801,0.0590277,84705.0,84704.0,0.3580558]
[1742009647002,0.0590277,84705.0,84704.0,0.3980558]
[1742009647198,0.0936277,84705.0,84704.0,0.3780558]
[1742009647398,0.1521532,84706.0,84705.0,0.1180544]
[1742009647607,0.1521532,84706.0,84705.0,0.3480544]
[1742009647812,0.1521532,84706.0,84705.0,0.1180544]
[1742009648514,0.1521532,84706.0,84705.0,0.3580544]
[1742009648701,0.1521532,84706.0,84705.0,0.3680544]
[1742009649810,0.1521532,84706.0,84705.0,0.3780544]
[1742009650110,0.1521532,84706.0,84705.0,0.3880544]
[1742009650514,0.1521532,84706.0,84705.0,0.3580544]
[1742009650809,0.1521532,84706.0,84705.0,0.1180544]
[1742009651516,0.1521532,84706.0,84705.0,0.3780544]
[1742009651700,0.1521532,84706.0,84705.0,0.1180544]
[1742009652009,0.1521532,84706.0,84705.0,0.3980544]
[1742009652205,0.1521532,84706.0,84705.0,0.1180544]
[1742009652610,0.1521532,84706.0,84705.0,0.3480544]
[1742009653015,0.1521532,84706.0,84705.0,0.3880544]
[1742009653205,0.1521532,84706.0,84705.0,0.3980544]
[1742009653507,0.1521532,84706.0,84705.0,0.1180544]
[1742009653903,0.0341,84706.0,84702.0,0.1770871]
[1742009654105,0.1180572,84703.0,84702.0,0.2361157]
[1742009654303,0.1180572,84703.0,84702.0,0.4961157]
[1742009654498,0.1180572,84703.0,84702.0,0.2361157]
[1742009654712,0.1180572,84703.0,84702.0,0.5061157]
[1742009654904,0.1505572,84703.0,84702.0,0.5061157]
[1742009655104,0.1505572,84703.0,84702.0,0.5071157]
[1742009655713,0.1505572,84703.0,84702.0,0.5171157]
[1742009655905,0.1505572,84703.0,84702.0,0.261]
[1742009656103,0.4005572,84703.0,84702.0,0.001]
[1742009656307,0.1505572,84703.0,84702.0,0.001]
[1742009656705,0.7937572,84703.0,84702.0,0.001]
[1742009656900,0.1180655,84698.0,84696.0,0.1180658]
[1742009657106,0.1180725,84692.0,84688.0,0.059039]
[1742009657314,0.1180725,84692.0,84680.0,0.28254402]
[1742009657315,0.2180725,84692.0,84680.0,0.28254402]
[1742009657518,0.1180725,84692.0,84683.0,0.4198419]
[1742009657816,0.1180725,84692.0,84688.0,0.1180773]
[1742009658112,0.1846725,84692.0,84688.0,0.1180773]
[1742009658409,0.2846725,84692.0,84688.0,0.1180773]
[1742009658607,0.1846725,84692.0,84691.0,0.01292586]
[1742009658806,0.2846725,84692.0,84691.0,0.13099976]
[1742009659008,0.1846725,84692.0,84691.0,0.16369976]
[1742009659209,0.2846725,84692.0,84691.0,0.19729976]
[1742009659405,0.1846725,84692.0,84691.0,0.19729976]
[1742009660618,0.1846725,84692.0,84691.0,0.07922586]
[1742009661011,0.1846725,84692.0,84691.0,0.19729976]
[1742009661313,0.1846725,84692.0,84691.0,0.07922586]
[1742009661508,0.1846725,84692.0,84691.0,0.19729976]
[1742009661909,0.1846725,84692.0,84691.0,0.07922586]
[1742009662619,0.1846725,84692.0,84691.0,0.34922586]
[1742009662808,0.1846725,84692.0,84691.0,0.19729976]
[1742009663214,0.1846725,84692.0,84691.0,0.42729976]
[1742009663714,0.1846725,84692.0,84691.0,0.19729976]
[1742009663921,0.1846725,84692.0,84691.0,0.07922586]
[1742009664419,0.1846725,84692.0,84691.0,0.44729976]
[1742009664614,0.1846725,84692.0,84691.0,0.07922586]
[1742009665213,0.1846725,84692.0,84691.0,0.19729976]
[1742009665611,0.1846725,84692.0,84691.0,0.46729976]
[1742009665811,0.1846725,84692.0,84691.0,0.19729976]
[1742009666016,0.1846725,84692.0,84691.0,0.44729976]
[1742009666318,0.2336725,84692.0,84691.0,0.19729976]
[1742009666524,0.2336725,84692.0,84691.0,0.44729976]
[1742009666814,0.2336725,84692.0,84691.0,0.45729976]
[1742009667020,0.2336725,84692.0,84691.0,0.19729976]
[1742009667217,0.2336725,84692.0,84691.0,0.47729976]
[1742009667618,0.2336725,84692.0,84691.0,0.45729976]
[1742009667817,0.2336725,84692.0,84691.0,0.19729976]
[1742009668113,0.2336725,84692.0,84691.0,0.43729976]
[1742009668417,0.2670725,84692.0,84691.0,0.43729976]
[1742009668611,0.2670725,84692.0,84691.0,0.47729976]
[1742009668921,0.2670725,84692.0,84691.0,0.44729976]
[1742009669109,0.1180725,84692.0,84691.0,0.19729976]
[1742009669311,0.1503725,84692.0,84691.0,0.19729976]
[1742009669515,0.1835725,84692.0,84691.0,0.19729976]
[1742009670824,0.1835725,84692.0,84691.0,0.46729976]
[1742009671319,0.1156,84693.0,84692.0,0.1180725]
[1742009671526,0.2336719,84693.0,84692.0,0.4419725]
[1742009672018,0.1156,84693.0,84692.0,0.4519725]
[1742009672225,0.1180599,84702.0,84701.0,0.1180599]
[1742009672527,0.0590233,84711.0,84707.0,0.1770765]
[1742009672728,0.1180488,84709.0,84708.0,0.1526496]
[1742009673625,0.1518488,84709.0,84708.0,0.1526496]
[1742009673820,0.2746488,84709.0,84708.0,0.1526496]
[1742009674026,0.1846488,84709.0,84708.0,0.1526496]
[1742009674318,0.4646488,84709.0,84708.0,0.1526496]
[1742009674525,0.4102488,84709.0,84708.0,0.1526496]
[1742009674721,0.3002488,84709.0,84708.0,0.0346]
[1742009675225,0.3002488,84709.0,84708.0,0.1526502]
[1742009675226,0.3012488,84709.0,84708.0,0.1526502]
[1742009675434,0.3032488,84709.0,84708.0,0.1526502]
[1742009677023,0.6640488,84709.0,84708.0,0.0346]
[1742009677220,0.6640488,84709.0,84708.0,0.1526502]
[1742009677419,0.6640488,84709.0,84708.0,0.1844502]
[1742009678519,0.6640488,84709.0,84708.0,0.0664]
[1742009678722,0.118053,84707.0,84705.0,0.118054]
[1742009678927,0.118053,84706.0,84705.0,0.118054]
[1742009681326,0.119053,84706.0,84705.0,0.118054]
[1742009681528,0.1180558,84704.0,84703.0,0.0590279]
[1742009683629,0.1180572,84703.0,84702.0,0.0326]
[1742009683931,0.1180725,84692.0,84690.0,0.3608]
[1742009684131,0.1180725,84692.0,84688.0,0.1180777]
[1742009684434,0.1180725,84692.0,84684.0,0.033]
[1742009684637,0.2280725,84692.0,84684.0,0.033]
[1742009684836,0.3680725,84692.0,84685.0,0.1180814]
[1742009685036,0.1180725,84692.0,84686.0,0.1180802]
[1742009685534,0.1180864,84682.0,84681.0,0.21194282]
[1742009685727,0.1180864,84682.0,84681.0,0.33003022]
[1742009685922,0.1170864,84682.0,84681.0,0.33003022]
[1742009686130,0.1170864,84682.0,84681.0,0.34192617]
[1742009686738,0.1160864,84682.0,84681.0,0.34192617]
[1742009687034,0.1160864,84682.0,84681.0,0.34492617]
[1742009687733,0.1160864,84682.0,84681.0,0.34892617]
[1742009688732,0.1160864,84682.0,84681.0,0.13698335]
[1742009689633,0.1804864,84682.0,84681.0,0.13698335]
[1742009693325,0.1804864,84682.0,84681.0,0.13498335]
[1742009693529,0.1804864,84682.0,84681.0,0.13198335]
[1742009693729,0.1804864,84682.0,84681.0,0.13298335]
[1742009694831,0.1180962,84675.0,84674.0,0.00177105]
[1742009695030,0.1181032,84670.0,84669.0,0.032]
[1742009695334,0.4789032,84670.0,84669.0,0.032]
[1742009695839,0.1181143,84662.0,84661.0,0.37250125]
[1742009696028,0.1181143,84662.0,84661.0,0.01170125]
[1742009696229,0.1181157,84661.0,84660.0,0.21194282]
[1742009696428,0.2830157,84661.0,84660.0,0.21194282]
[1742009696634,0.1790157,84661.0,84660.0,0.21194282]
[1742009697226,0.1790157,84661.0,84655.0,0.1181238]
[1742009697429,0.4789227,84656.0,84655.0,0.13012571]
[1742009697829,0.1181227,84656.0,84655.0,0.01200191]
[1742009698026,0.1181241,84655.0,84654.0,0.1181254]
[1742009698226,0.1827241,84655.0,84654.0,0.1181254]
[1742009698438,0.1827241,84655.0,84654.0,0.3781254]
[1742009698629,0.1827241,84655.0,84654.0,0.3481254]
[1742009698829,0.1827241,84655.0,84654.0,0.3581254]
[1742009699036,0.1827241,84655.0,84654.0,0.3905254]
[1742009699339,0.1827241,84655.0,84654.0,0.4140254]
[1742009699834,0.1827241,84655.0,84654.0,0.4150254]
[1742009700230,0.0646,84655.0,84654.0,0.42657986]
[1742009700431,0.14745423,85141.0,84654.0,0.42657986]
[1742009700432,0.0590523,84669.0,84668.0,0.1181046]
[1742009700634,0.23826,84669.0,84657.0,0.3608]
[1742009700835,0.1181185,84659.0,84658.0,0.1840199]
[1742009701136,0.1181185,84659.0,84658.0,0.0659]
[1742009701342,0.1181185,84659.0,84658.0,0.4440199]
[1742009701527,0.1181185,84659.0,84658.0,0.4340199]
[1742009701733,0.1829185,84659.0,84658.0,0.0659]
[1742009702041,0.1839185,84659.0,84658.0,0.1840199]
[1742009703151,0.1839185,84659.0,84658.0,0.4540199]
[1742009703440,0.001,84659.0,84658.0,0.4540199]
[1742009703643,0.001,84659.0,84658.0,0.9240199]
[1742009704331,0.001,84659.0,84658.0,0.4540199]
[1742009704531,0.001,84659.0,84658.0,0.9840199]
[1742009704943,0.0001771,84670.0,84669.0,0.1181046]
[1742009705137,0.0001771,84670.0,84669.0,0.3581046]
[1742009705337,0.1182803,84670.0,84669.0,0.3681046]
[1742009705940,0.0001771,84670.0,84669.0,0.3681046]
[1742009706135,0.0031771,84670.0,84669.0,0.3681046]
[1742009706444,0.1212803,84670.0,84669.0,0.3681046]
[1742009707036,0.1252803,84670.0,84669.0,0.3681046]
[1742009708043,0.0071771,84670.0,84669.0,0.6281046]
[1742009708245,0.0071771,84670.0,84669.0,0.8781046]
[1742009708940,0.0648,84679.0,84669.0,0.8781046]
[1742009708941,0.00177203,84681.0,84680.0,0.1180892]
[1742009709134,0.2349269,84682.0,84681.0,0.1180878]
[1742009709539,0.2349269,84682.0,84681.0,0.4883878]
[1742009709732,0.2349269,84682.0,84681.0,0.2183878]
[1742009710139,0.2349269,84682.0,84681.0,0.4883878]
[1742009710441,0.2389269,84682.0,84681.0,0.4983878]
[1742009710637,0.2389269,84682.0,84681.0,0.2183878]
[1742009710842,0.2389269,84682.0,84681.0,0.4683878]
[1742009710843,0.1220869,84682.0,84681.0,0.4683878]
[1742009711040,0.1230869,84682.0,84681.0,0.4683878]
[1742009711651,0.1230869,84682.0,84681.0,0.4783878]
[1742009711843,0.1230869,84682.0,84681.0,0.4983878]
[1742009712047,0.1230869,84682.0,84681.0,0.2183878]
[1742009712250,0.1861869,84682.0,84681.0,0.2183878]
[1742009712448,0.1821869,84682.0,84681.0,0.2183878]
[1742009713240,0.1821869,84682.0,84681.0,0.1003]
[1742009713439,0.1821869,84682.0,84681.0,0.11202976]
[1742009715639,0.1821869,84682.0,84681.0,0.07802976]
[1742009717343,0.1821869,84682.0,84681.0,0.19611756]
[1742009719951,0.1821869,84682.0,84681.0,0.07802976]
[1742009720245,0.1821869,84682.0,84681.0,0.36802976]
[1742009720453,0.1821869,84682.0,84681.0,0.07802976]
[1742009722046,0.5429869,84682.0,84681.0,0.01172976]
[1742009722351,0.118092,84678.0,84677.0,0.0661]
[1742009722645,0.388092,84678.0,84677.0,0.0661]
[1742009722851,0.0590535,84668.0,84661.0,0.1181147]
[1742009723048,0.1181101,84665.0,84664.0,0.0318]
[1742009723249,0.1181129,84663.0,84662.0,0.0668]
[1742009723637,0.1181129,84663.0,84662.0,0.07863664]
[1742009723841,0.1826129,84663.0,84662.0,0.07863664]
[1742009724052,0.1826129,84663.0,84662.0,0.19675094]
[1742009724852,0.1826129,84663.0,84662.0,0.47675094]
[1742009725048,0.1826129,84663.0,84662.0,0.19675094]
[1742009725238,0.2991729,84663.0,84662.0,0.19675094]
[1742009725644,0.2991729,84663.0,84662.0,0.44675094]
[1742009725951,0.2991729,84663.0,84662.0,0.20475094]
[1742009726152,0.2991729,84663.0,84662.0,0.48475094]
[1742009726454,0.2991729,84663.0,84662.0,0.45475094]
[1742009726657,0.2991729,84663.0,84662.0,0.69475094]
[1742009727047,0.2991729,84663.0,84662.0,0.72475094]
[1742009727553,0.1181096,84670.0,84669.0,0.1181032]
[1742009727754,0.1862096,84670.0,84669.0,0.3781032]
[1742009727950,0.1862096,84670.0,84669.0,0.1181032]
[1742009729254,0.1862096,84670.0,84669.0,0.1201032]
[1742009729454,0.1862096,84670.0,84669.0,0.1221032]
[1742009730157,0.1862096,84670.0,84669.0,0.3921032]
[1742009730560,0.1862096,84670.0,84669.0,0.4021032]
[1742009730857,0.1862096,84670.0,84669.0,0.1221032]
[1742009731852,0.1862096,84670.0,84669.0,0.004]
[1742009732452,0.1862096,84670.0,84669.0,0.254]
[1742009732654,0.1862096,84670.0,84669.0,0.004]
[1742009733661,0.1862096,84670.0,84669.0,0.264]
[1742009734360,0.1862096,84670.0,84669.0,0.244]
[1742009735066,0.1862096,84670.0,84669.0,0.004]
[1742009735659,0.1862096,84670.0,84669.0,0.264]
[1742009735860,0.1862096,84670.0,84669.0,0.004]
[1742009736055,0.1181096,84670.0,84669.0,0.264]
[1742009736255,0.1181096,84670.0,84669.0,0.244]
[1742009736955,0.1181096,84670.0,84669.0,0.004]
[1742009737757,0.1510096,84670.0,84669.0,0.254]
[1742009737957,0.1510096,84670.0,84669.0,0.004]
[1742009738667,0.1854096,84670.0,84669.0,0.004]
[1742009739064,0.1181241,84655.0,84650.0,0.21194282]
[1742009739267,0.3481241,84655.0,84652.0,0.0319]
[1742009739564,0.1181297,84651.0,84650.0,0.21194282]
[1742009739754,0.0590676,84648.0,84644.0,0.28254402]
[1742009739957,0.0590676,84648.0,84634.0,0.0319]
[1742009739958,0.1181478,84638.0,84634.0,0.0319]
[1742009740265,0.1181478,84638.0,84637.0,0.47243424]
[1742009740458,0.1171478,84638.0,84637.0,0.47243424]
[1742009740657,0.1171478,84638.0,84637.0,0.71243424]
[1742009740658,0.1517478,84638.0,84637.0,0.71243424]
[1742009740854,0.1517478,84638.0,84637.0,0.50553424]
[1742009741052,0.15096,84639.0,84637.0,0.50553424]
[1742009741053,0.11776,84639.0,84637.0,0.50553424]
[1742009741257,0.11776,84639.0,84638.0,0.4789478]
[1742009741464,0.11776,84639.0,84638.0,0.5118478]
[1742009741665,0.11776,84639.0,84638.0,0.5449478]
[1742009741863,0.11776,84639.0,84638.0,0.8049478]
[1742009742067,0.11776,84639.0,84638.0,0.5449478]
[1742009742370,0.11376,84639.0,84638.0,0.5449478]
[1742009742569,0.2319064,84639.0,84638.0,0.5449478]
[1742009742870,0.2319064,84639.0,84638.0,0.1841478]
[1742009743178,0.2329064,84639.0,84638.0,0.8289478]
[1742009743360,0.2329064,84639.0,84638.0,0.1881478]
[1742009743559,0.3017064,84639.0,84638.0,0.5529478]
[1742009743963,0.1879464,84639.0,84638.0,0.5529478]
[1742009745060,0.1191464,84639.0,84638.0,0.5529478]
[1742009745671,0.1191464,84639.0,84638.0,0.7929478]
[1742009745866,0.1191464,84639.0,84638.0,0.5529478]
[1742009746664,0.1191464,84639.0,84638.0,0.8329478]
[1742009747072,0.1191464,84639.0,84638.0,0.5529478]
[1742009747272,0.1191464,84639.0,84638.0,0.8329478]
[1742009747673,0.1191464,84639.0,84638.0,0.4721478]
[1742009747873,0.1191464,84639.0,84638.0,0.1921478]
[1742009748564,0.1534464,84639.0,84638.0,0.4621478]
[1742009748766,0.1534464,84639.0,84638.0,0.1921478]
[1742009749074,0.1524464,84639.0,84638.0,0.07]
[1742009749373,0.1524464,84639.0,84638.0,0.4681478]
[1742009749759,0.1524464,84639.0,84638.0,0.4481478]
[1742009749973,0.1524464,84639.0,84638.0,0.4581478]
[1742009750363,0.1524464,84639.0,84638.0,0.1881478]
[1742009750567,0.1524464,84639.0,84638.0,0.07]
[1742009750959,0.1524464,84639.0,84638.0,0.0371]
[1742009751264,0.1181464,84639.0,84638.0,0.0371]
[1742009751970,0.1856464,84639.0,84638.0,0.0371]
[1742009752761,0.5464464,84639.0,84638.0,0.0371]
[1742009753168,0.8064464,84639.0,84638.0,0.0371]
[1742009753370,0.5464464,84639.0,84638.0,0.0371]
[1742009753675,0.5464464,84639.0,84638.0,0.004]
[1742009754373,0.7664464,84639.0,84638.0,1e-07]
[1742009754968,0.1181604,84629.0,84625.0,0.0337]
[1742009755168,0.4789646,84626.0,84625.0,0.0337]
[1742009762880,0.1181674,84624.0,84623.0,0.0465119]
[1742009763466,0.1854674,84624.0,84623.0,0.0465119]
[1742009763870,0.1854674,84624.0,84623.0,0.0788119]
[1742009764074,0.1854674,84624.0,84623.0,0.1969807]
[1742009764283,0.1854674,84624.0,84623.0,0.0798119]
[1742009764482,0.1854674,84624.0,84623.0,0.1979807]
[1742009765485,0.1854674,84624.0,84623.0,0.0798119]
[1742009766981,0.4454674,84624.0,84623.0,0.0798119]
[1742009767180,0.1854674,84624.0,84623.0,0.0798119]
[1742009768482,0.1854674,84624.0,84623.0,0.1979807]
[1742009769288,0.1854674,84624.0,84623.0,0.4579807]
[1742009769487,0.1854674,84624.0,84623.0,0.1979807]
[1742009769785,0.1854674,84624.0,84623.0,0.4679807]
[1742009770282,0.1854674,84624.0,84623.0,0.0798119]
[1742009773378,0.1854674,84624.0,84623.0,0.4379807]
[1742009773584,0.1854674,84624.0,84623.0,0.4679807]
[1742009773780,0.1519674,84624.0,84623.0,0.4479807]
[1742009773980,0.1519674,84624.0,84623.0,0.1979807]
[1742009774177,0.1519674,84624.0,84623.0,0.4779807]
[1742009774585,0.1519674,84624.0,84623.0,0.1979807]
[1742009774782,0.1519674,84624.0,84623.0,0.4779807]
[1742009774985,0.1519674,84624.0,84623.0,0.1979807]
[1742009775782,0.1519674,84624.0,84623.0,0.4679807]
[1742009776184,0.1519674,84624.0,84623.0,0.1979807]
[1742009776378,0.1519674,84624.0,84623.0,0.4379807]
[1742009776584,0.1519674,84624.0,84623.0,0.1979807]
[1742009776984,0.1519674,84624.0,84623.0,0.4679807]
[1742009777180,0.1519674,84624.0,84623.0,0.4579807]
[1742009777381,0.1519674,84624.0,84623.0,0.4279807]
[1742009777691,0.1519674,84624.0,84623.0,0.4379807]
[1742009778099,0.1519674,84624.0,84623.0,0.1979807]
[1742009779582,0.175683,84626.0,84625.0,0.1772455]
[1742009779583,0.1181649,84626.0,84625.0,0.1772455]
[1742009779785,0.3608,84631.0,84630.0,0.118159]
[1742009779985,0.1181502,84637.0,84636.0,0.1181506]
[1742009780181,0.2346702,84637.0,84636.0,0.1181506]
[1742009780487,0.2346702,84637.0,84636.0,0.6281506]
[1742009780677,0.24766418,84643.0,84640.0,0.118145]
[1742009780878,0.25331559,84642.0,84641.0,0.1506436]
[1742009781081,0.25331559,84642.0,84641.0,0.4640436]
[1742009781286,0.25331559,84642.0,84641.0,0.4340436]
[1742009781877,0.25331559,84642.0,84641.0,0.1840436]
[1742009782184,0.25331559,84642.0,84641.0,0.4540436]
[1742009782382,0.25331559,84642.0,84641.0,0.4340436]
[1742009783083,0.25331559,84642.0,84641.0,0.1840436]
[1742009783084,0.1181422,84642.0,84641.0,0.1840436]
[1742009783289,0.1221422,84642.0,84641.0,0.1840436]
[1742009783479,0.1251422,84642.0,84641.0,0.4440436]
[1742009783691,0.1251422,84642.0,84641.0,0.4640436]
[1742009784693,0.1251422,84642.0,84641.0,0.4440436]
[1742009785092,0.1251422,84642.0,84641.0,0.1840436]
[1742009785484,0.1251422,84642.0,84641.0,0.4340436]
[1742009785789,0.1251422,84642.0,84641.0,0.4440436]
[1742009786179,0.1251422,84642.0,84641.0,0.4540436]
[1742009786385,0.1251422,84642.0,84641.0,0.4340436]
[1742009786582,0.1251422,84642.0,84641.0,0.4240436]
[1742009786783,0.1251422,84642.0,84641.0,0.4140436]
[1742009786982,0.1251422,84642.0,84641.0,0.4440436]
[1742009787285,0.1251422,84642.0,84641.0,0.4240436]
[1742009787484,0.1251422,84642.0,84641.0,0.1840436]
[1742009787692,0.007,84642.0,84641.0,0.9540436]
[1742009787995,0.007,84642.0,84641.0,0.4740436]
[1742009788191,0.1251422,84642.0,84641.0,0.4740436]
[1742009788397,0.1251422,84642.0,84641.0,0.4540436]
[1742009788594,0.1251422,84642.0,84641.0,0.4240436]
[1742009788790,0.007,84642.0,84641.0,0.1840436]
[1742009788997,0.1251422,84642.0,84641.0,0.4140436]
[1742009789191,0.1251422,84642.0,84641.0,0.4440436]
[1742009789796,0.1251422,84642.0,84641.0,0.4240436]
[1742009790001,0.007,84642.0,84641.0,0.9740436]
[1742009790201,0.007,84642.0,84641.0,0.9340436]
[1742009790695,0.007,84642.0,84641.0,0.4540436]
[1742009791001,0.007,84642.0,84641.0,0.7640436]
[1742009791197,0.0001772,84646.0,84645.0,0.1181381]
[1742009791402,0.0001772,84646.0,84645.0,0.3581381]
[1742009791596,0.0001772,84646.0,84645.0,0.4225381]
[1742009792592,0.0071772,84646.0,84645.0,0.4225381]
[1742009795102,0.0071772,84646.0,84645.0,0.9625381]
[1742009795295,0.0071772,84646.0,84645.0,0.4225381]
[1742009795599,0.0071772,84646.0,84645.0,0.9325381]
[1742009797306,0.0071772,84646.0,84645.0,0.4225381]
[1742009797491,0.0071772,84646.0,84645.0,0.9425381]
[1742009798903,0.0071772,84646.0,84645.0,0.4225381]
[1742009799103,0.0071772,84646.0,84645.0,0.9625381]
[1742009800108,0.0071772,84646.0,84645.0,0.4225381]
[1742009801006,0.0071772,84646.0,84645.0,0.9325381]
[1742009801210,0.0392772,84646.0,84645.0,0.4225381]
[1742009801400,0.0392772,84646.0,84645.0,0.9325381]
[1742009801601,0.0392772,84646.0,84645.0,0.4225381]
[1742009802102,0.0728772,84646.0,84645.0,0.9425381]
[1742009802501,0.0728772,84646.0,84645.0,0.9625381]
[1742009802813,0.1910139,84646.0,84645.0,0.4225381]
[1742009803014,0.1910139,84646.0,84645.0,0.9425381]
[1742009803205,0.1910139,84646.0,84645.0,0.9125381]
[1742009803511,0.1910139,84646.0,84645.0,0.9325381]
[1742009803712,0.1910139,84646.0,84645.0,0.4225381]
[1742009803909,0.1910139,84646.0,84645.0,0.9425381]
[1742009804310,0.1910139,84646.0,84645.0,0.9325381]
[1742009804513,0.1910139,84646.0,84645.0,0.4225381]
[1742009805009,0.1910139,84646.0,84645.0,0.9325381]
[1742009805208,0.1910139,84646.0,84645.0,0.9825381]
[1742009805509,0.1910139,84646.0,84645.0,1.0533381]
[1742009805713,0.1910139,84646.0,84645.0,1.2933381]
[1742009806115,0.1910139,84646.0,84645.0,0.7833381]
[1742009806308,0.1910139,84646.0,84645.0,1.3133381]
[1742009806813,0.1910139,84646.0,84645.0,1.2833381]
[1742009807516,0.1910139,84646.0,84645.0,1.2533381]
[1742009807704,0.1910139,84646.0,84645.0,0.7833381]
[1742009807905,0.0728772,84646.0,84645.0,1.2833381]
[1742009808410,0.0728772,84646.0,84645.0,1.2733381]
[1742009809007,0.0728772,84646.0,84645.0,0.7833381]
[1742009809207,0.0728772,84646.0,84645.0,1.3033381]
[1742009810599,0.0728772,84646.0,84645.0,1.2833381]
[1742009811001,0.0657,84646.0,84645.0,0.7833381]
[1742009811213,0.17776811,84665.0,84663.0,0.0590564]
[1742009811412,0.1771681,84665.0,84664.0,0.0679]
[1742009811915,0.1771681,84665.0,84664.0,0.1860115]
[1742009812109,0.1771681,84665.0,84664.0,0.20024788]
[1742009812310,0.1821681,84665.0,84664.0,0.20024788]
[1742009814301,0.1811681,84665.0,84664.0,0.20024788]
[1742009814709,0.2455681,84665.0,84664.0,0.20024788]
[1742009815118,0.2415681,84665.0,84664.0,0.20024788]
[1742009815317,0.2415681,84665.0,84664.0,0.47024788]
[1742009815508,0.2415681,84665.0,84664.0,0.20024788]
[1742009815701,0.2415681,84665.0,84664.0,0.44024788]
[1742009815907,0.2415681,84665.0,84664.0,0.20024788]
[1742009817319,0.0644,84665.0,84664.0,0.48024788]
[1742009817612,0.0644,84665.0,84664.0,0.91024788]
[1742009817918,0.0644,84665.0,84664.0,0.49024788]
[1742009818116,0.0644,84665.0,84664.0,1.02024788]
[1742009818308,0.0644,84665.0,84664.0,0.49024788]
[1742009818508,0.0644,84665.0,84664.0,0.43024788]
[1742009818709,0.0644,84665.0,84664.0,0.91024788]
[1742009818914,0.0644,84665.0,84664.0,0.94024788]
[1742009819216,0.0644,84665.0,84664.0,0.46024788]
[1742009819406,0.1825101,84665.0,84664.0,0.47024788]
[1742009819608,0.1825101,84665.0,84664.0,0.45024788]
[1742009819808,0.1825101,84665.0,84664.0,0.96024788]
[1742009820015,0.0590527,84669.0,84664.0,0.82213638]
[1742009820316,0.36534037,84673.0,84672.0,0.1181004]
[1742009820509,0.0590515,84671.0,84667.0,0.0590536]
[1742009820709,0.1181046,84669.0,84668.0,0.1864048]
[1742009820915,0.1181046,84669.0,84668.0,0.0683]
[1742009821114,0.1520046,84669.0,84668.0,0.186406]
[1742009821321,0.1181101,84665.0,84664.0,0.01423638]
[1742009821510,0.1181101,84665.0,84664.0,0.1181115]
[1742009822113,0.1181101,84665.0,84664.0,0.1525115]
[1742009822418,0.33048,84665.0,84664.0,0.1525115]
[1742009823011,0.33048,84665.0,84664.0,0.16640224]
[1742009823921,0.33248,84665.0,84664.0,0.16640224]
[1742009824507,0.33248,84665.0,84664.0,0.44640224]
[1742009824712,0.33248,84665.0,84664.0,0.16640224]
[1742009825823,0.1201101,84665.0,84664.0,0.16640224]
[1742009826224,0.1525101,84665.0,84664.0,0.16640224]
[1742009827825,0.0344,84665.0,84664.0,0.43640224]
[1742009828324,0.002,84665.0,84664.0,0.79640224]
[1742009828626,0.002,84665.0,84664.0,0.83640224]
[1742009828926,0.2143699,84665.0,84664.0,0.83640224]
[1742009830329,0.2143699,84665.0,84664.0,0.55640224]
[1742009830632,0.2123699,84665.0,84664.0,0.82640224]
[1742009830821,0.2123699,84665.0,84664.0,0.31940224]
[1742009831129,0.2123699,84665.0,84664.0,0.88240224]
[1742009832036,0.2123699,84665.0,84664.0,0.80240224]
[1742009832325,0.2123699,84665.0,84664.0,0.57140224]
[1742009832528,0.1181082,84667.0,84666.0,0.1181088]
[1742009832731,0.1181082,84667.0,84666.0,0.3981088]
[1742009832929,0.1181082,84667.0,84666.0,0.3581088]
[1742009833129,0.1181082,84667.0,84666.0,0.4318088]
[1742009833428,0.1181082,84667.0,84666.0,0.4118088]
[1742009833828,0.0345,84668.0,84667.0,0.1181074]
[1742009834030,0.0345,84668.0,84667.0,0.4134074]
[1742009834228,0.152606,84668.0,84667.0,0.4134074]
[1742009834427,0.152606,84668.0,84667.0,0.1834074]
[1742009834731,0.152606,84668.0,84667.0,0.4234074]
[1742009834931,0.152606,84668.0,84667.0,0.4254074]
[1742009835134,0.152606,84668.0,84667.0,0.4154074]
[1742009835332,0.152606,84668.0,84667.0,0.4174074]
[1742009835733,0.152606,84668.0,84667.0,0.1874074]
[1742009835934,0.0345,84668.0,84667.0,0.4374074]
[1742009836823,0.0345,84668.0,84667.0,0.1874074]
[1742009837019,0.0345,84668.0,84667.0,0.4274074]
[1742009837235,0.152606,84668.0,84667.0,0.4274074]
[1742009838143,0.152606,84668.0,84667.0,0.1874074]
[1742009839128,0.185206,84668.0,84667.0,0.1874074]
[1742009839334,0.185206,84668.0,84667.0,0.4674074]
[1742009839531,0.185206,84668.0,84667.0,0.4354074]
[1742009839736,0.185206,84668.0,84667.0,0.1874074]
[1742009839933,0.185206,84668.0,84667.0,0.4674074]
[1742009840125,0.185206,84668.0,84667.0,0.4574074]
[1742009840529,0.185206,84668.0,84667.0,0.4554074]
[1742009840726,0.185206,84668.0,84667.0,0.1874074]
[1742009840925,0.185206,84668.0,84667.0,0.1854074]
[1742009841240,0.185206,84668.0,84667.0,0.1844074]
[1742009841438,0.185206,84668.0,84667.0,0.4644074]
[1742009841831,0.185206,84668.0,84667.0,0.4444074]
[1742009842038,0.185206,84668.0,84667.0,0.1844074]
[1742009843838,0.185206,84668.0,84667.0,0.4344074]
[1742009844042,0.185206,84668.0,84667.0,0.1844074]
[1742009845438,0.185206,84668.0,84667.0,0.4444074]
[1742009845648,0.185206,84668.0,84667.0,0.1844074]
[1742009845840,0.185206,84668.0,84667.0,0.4644074]
[1742009846043,0.185206,84668.0,84667.0,0.1844074]
[1742009846245,0.185206,84668.0,84667.0,0.4644074]
[1742009846445,0.185206,84668.0,84667.0,0.4444074]
[1742009847038,0.185206,84668.0,84667.0,0.1844074]
[1742009847645,0.185206,84668.0,84667.0,0.0663]
[1742009848434,0.185206,84668.0,84667.0,0.001]
[1742009848642,0.1181129,84663.0,84662.0,0.0696]
[1742009848847,0.1181129,84663.0,84662.0,0.0349]
[1742009849046,0.1181129,84663.0,84662.0,0.1530143]
[1742009849047,0.1872129,84663.0,84662.0,0.1530143]
[1742009849553,0.1872129,84663.0,84662.0,0.1877143]
[1742009849744,0.5480129,84663.0,84662.0,0.1877143]